fUSD/lending_fUSD_20250113
["ID","MTS","AMOUNT","RATE_DAILY","PERIOD"]
[348849854,1736808636075,-500.0,9.894e-05,2]
[348849855,1736808636085,-500.0,9.894e-05,2]
[348849856,1736808636094,-500.0,9.894e-05,2]
[348849857,1736808636104,-500.0,9.894e-05,2]
[348849858,1736808636113,-500.0,9.894e-05,2]
[348849859,1736808636122,-500.0,9.894e-05,2]
[348849860,1736808636132,-500.0,9.894e-05,2]
[348849861,1736808636141,-500.0,9.894e-05,2]
[348849862,1736808636152,-500.0,9.894e-05,2]
[348849863,1736808636162,-500.0,9.894e-05,2]
[348849864,1736808636172,-500.0,9.894e-05,2]
[348849865,1736808636181,-500.0,9.894e-05,2]
[348849866,1736808636192,-500.0,9.894e-05,2]
[348849867,1736808636201,-500.0,9.894e-05,2]
[348849868,1736808636211,-500.0,9.894e-05,2]
[348849869,1736808636220,-500.0,9.894e-05,2]
[348849870,1736808636230,-500.0,9.894e-05,2]
[348849871,1736808636239,-500.0,9.894e-05,2]
[348849872,1736808636249,-1372.26,9.894e-05,2]
[348849873,1736808636258,-749.03,9.894e-05,2]
[348849874,1736808636267,-500.0,9.894e-05,2]
[348849875,1736808636277,-500.0,9.894e-05,2]
[348849876,1736808636286,-500.0,9.894e-05,2]
[348849877,1736808636295,-500.0,9.894e-05,2]
[348849878,1736808636305,-581.22117344,9.894e-05,2]
[348849879,1736808636314,-500.0,9.894e-05,2]
[348849880,1736808636323,-500.0,9.894e-05,2]
[348849881,1736808636333,-500.0,9.894e-05,2]
[348849882,1736808636342,-500.0,9.894e-05,2]
[348849883,1736808636352,-670.09,9.894e-05,2]
[348849884,1736808636361,-500.0,9.894e-05,2]
[348849885,1736808636371,-500.0,9.894e-05,2]
[348849886,1736808636380,-500.0,9.894e-05,2]
[348849887,1736808636389,-500.0,9.894e-05,2]
[348849888,1736808636398,-500.0,9.894e-05,2]
[348849889,1736808636408,-500.0,9.894e-05,2]
[348849890,1736808636417,-500.0,9.894e-05,2]
[348849891,1736808636426,-182.84734115,9.894e-05,2]
[348849892,1736808636436,-500.0,9.894e-05,2]
[348849893,1736808636445,-500.0,9.894e-05,2]
[348849894,1736808636455,-500.0,9.894e-05,2]
[348849895,1736808636464,-500.0,9.894e-05,2]
[348849896,1736808636473,-752.49,9.894e-05,2]
[348849897,1736808636482,-2214.34,9.894e-05,2]
[348849898,1736808636491,-500.0,9.894e-05,2]
[348849899,1736808636501,-500.0,9.894e-05,2]
[348849900,1736808636510,-500.0,9.894e-05,2]
[348849901,1736808636520,-500.0,9.894e-05,2]
[348849902,1736808636531,-547.18,9.894e-05,2]
[348849903,1736808636543,-753.26,9.894e-05,2]
[348849904,1736808636552,-500.0,9.894e-05,2]
[348849905,1736808636562,-500.0,9.894e-05,2]
[348849906,1736808636571,-500.0,9.894e-05,2]
[348849907,1736808636579,-500.0,9.894e-05,2]
[348849908,1736808636588,-500.0,9.894e-05,2]
[348849909,1736808636597,-500.0,9.894e-05,2]
[348849910,1736808636606,-500.0,9.894e-05,2]
[348849911,1736808636615,-500.0,9.894e-05,2]
[348849912,1736808636624,-500.0,9.894e-05,2]
[348849913,1736808636633,-500.0,9.894e-05,2]
[348849914,1736808636642,-1372.93,9.894e-05,2]
[348849915,1736808636652,-500.0,9.894e-05,2]
[348849916,1736808636662,-500.0,9.894e-05,2]
[348849917,1736808636672,-500.0,9.894e-05,2]
[348849918,1736808636685,-500.0,9.894e-05,2]
[348849919,1736808636698,-500.0,9.894e-05,2]
[348849920,1736808636708,-500.0,9.894e-05,2]
[348849921,1736808636718,-1180.71,9.894e-05,2]
[348849922,1736808636728,-684.12,9.894e-05,2]
[348849923,1736808636739,-500.0,9.894e-05,2]
[348849924,1736808636750,-500.0,9.894e-05,2]
[348849925,1736808636760,-500.0,9.894e-05,2]
[348849926,1736808636769,-611.19,9.894e-05,2]
[348849927,1736808636778,-500.0,9.894e-05,2]
[348849928,1736808636787,-998.0,9.894e-05,2]
[348849929,1736808636796,-500.0,9.894e-05,2]
[348849930,1736808636805,-500.0,9.894e-05,2]
[348849931,1736808636816,-500.0,9.894e-05,2]
[348849932,1736808636827,-500.0,9.894e-05,2]
[348849933,1736808636839,-500.0,9.894e-05,2]
[348849934,1736808636848,-500.0,9.894e-05,2]
[348849935,1736808636857,-500.0,9.894e-05,2]
[348849936,1736808636868,-500.0,9.894e-05,2]
[348849937,1736808636878,-500.0,9.894e-05,2]
[348849938,1736808636888,-528.397058,9.894e-05,2]
[348849939,1736808636898,-500.0,9.894e-05,2]
[348849940,1736808636907,-500.0,9.894e-05,2]
[348849941,1736808636916,-510.11680427,9.894e-05,2]
[348849942,1736808636925,-2711.37,9.894e-05,2]
[348849943,1736808636935,-500.0,9.894e-05,2]
[348849944,1736808636944,-938.63,9.894e-05,2]
[348849945,1736808636953,-904.04,9.894e-05,2]
[348849946,1736808636963,-505.64901312,9.894e-05,2]
[348849947,1736808636972,-781.07,9.894e-05,2]
[348849948,1736808636981,-500.0,9.894e-05,2]
[348849949,1736808636990,-553.535987,9.894e-05,2]
[348849950,1736808636999,-500.0,9.894e-05,2]
[348849951,1736808637008,-500.0,9.894e-05,2]
[348849952,1736808637017,-500.0,9.894e-05,2]
[348849953,1736808637026,-500.0,9.894e-05,2]
[348849954,1736808637035,-500.0,9.894e-05,2]
[348849955,1736808637044,-437.84778395,9.894e-05,2]
[348849956,1736808637053,-533.96978612,9.894e-05,2]
[348849957,1736808637062,-500.0,9.894e-05,2]
[348849958,1736808637071,-500.0,9.894e-05,2]
[348849959,1736808637081,-500.0,9.894e-05,2]
[348849960,1736808637090,-500.0,9.894e-05,2]
[348849961,1736808637099,-500.0,9.894e-05,2]
[348849962,1736808637108,-500.0,9.894e-05,2]
[348849963,1736808637117,-801.26,9.894e-05,2]
[348849964,1736808637126,-500.0,9.894e-05,2]
[348849965,1736808637136,-500.0,9.894e-05,2]
[348849966,1736808637146,-500.0,9.894e-05,2]
[348849967,1736808637160,-1886.16,9.894e-05,2]
[348849968,1736808637172,-500.0,9.894e-05,2]
[348849969,1736808637182,-500.0,9.894e-05,2]
[348849970,1736808637191,-500.0,9.894e-05,2]
[348849971,1736808637202,-500.0,9.894e-05,2]
[348849972,1736808637211,-500.0,9.894e-05,2]
[348849973,1736808637222,-500.0,9.894e-05,2]
[348849974,1736808637232,-500.0,9.894e-05,2]
[348849975,1736808637243,-500.0,9.894e-05,2]
[348849976,1736808637253,-500.0,9.894e-05,2]
[348849977,1736808637265,-2873.51,9.894e-05,2]
[348849978,1736808637278,-500.0,9.894e-05,2]
[348849979,1736808637288,-500.0,9.894e-05,2]
[348849980,1736808637297,-3958.47,9.894e-05,2]
[348849981,1736808637308,-500.0,9.894e-05,2]
[348849982,1736808637317,-500.0,9.894e-05,2]
[348849983,1736808637327,-500.0,9.894e-05,2]
[348849986,1736808637337,-616.33,9.894e-05,2]
[348849988,1736808637346,-517.77,9.894e-05,2]
[348849989,1736808637356,-500.0,9.894e-05,2]
[348849990,1736808637366,-607.68,9.894e-05,2]
[348849991,1736808637377,-500.0,9.894e-05,2]
[348849992,1736808637387,-500.0,9.894e-05,2]
[348849993,1736808637398,-500.0,9.894e-05,2]
[348849994,1736808637407,-500.0,9.894e-05,2]
[348849995,1736808637417,-381.46936431,9.894e-05,2]
[348849996,1736808637426,-500.0,9.894e-05,2]
[348849997,1736808637435,-500.0,9.894e-05,2]
[348849998,1736808637444,-500.0,9.894e-05,2]
[348849999,1736808637453,-500.0,9.894e-05,2]
[348850000,1736808637462,-500.0,9.894e-05,2]
[348850001,1736808637471,-2857.57,9.894e-05,2]
[348850002,1736808637481,-500.0,9.894e-05,2]
[348850003,1736808637491,-500.0,9.894e-05,2]
[348850004,1736808637500,-500.0,9.894e-05,2]
[348850005,1736808637509,-500.0,9.894e-05,2]
[348850006,1736808637519,-500.0,9.894e-05,2]
[348850007,1736808637528,-1040.42,9.894e-05,2]
[348850008,1736808637537,-500.0,9.894e-05,2]
[348850009,1736808637547,-878.22,9.894e-05,2]
[348850010,1736808637737,-500.0,9.894e-05,2]
[348850011,1736808637747,-500.0,9.894e-05,2]
[348850012,1736808637757,-500.0,9.894e-05,2]
[348850013,1736808637767,-500.0,9.894e-05,2]
[348850014,1736808637776,-500.0,9.895e-05,2]
[348850015,1736808637786,-517.06402854,9.895e-05,2]
[348850016,1736808637795,-500.0,9.895e-05,2]
[348850017,1736808637805,-500.0,9.895e-05,2]
[348850018,1736808637815,-500.0,9.895e-05,2]
[348850019,1736808637824,-500.0,9.895e-05,2]
[348850020,1736808637834,-500.0,9.895e-05,2]
[348850021,1736808637844,-500.0,9.895e-05,2]
[348850022,1736808637853,-500.0,9.895e-05,2]
[348850023,1736808637862,-562.22836622,9.895e-05,2]
[348850024,1736808637872,-500.0,9.895e-05,2]
[348850025,1736808637882,-489.0,9.895e-05,2]
[348850026,1736808637891,-500.43833444,9.895e-05,2]
[348850027,1736808637901,-500.39785179,9.895e-05,2]
[348850028,1736808637910,-500.61647819,9.895e-05,2]
[348850029,1736808637919,-500.76664641,9.895e-05,2]
[348850030,1736808637929,-3872.47,9.895e-05,2]
[348850031,1736808637939,-1734.9,9.895e-05,2]
[348850032,1736808637948,-2619.18,9.895e-05,2]
[348850033,1736808637957,-1362.02,9.895e-05,2]
[348850034,1736808637966,-1535.4,9.895e-05,2]
[348850035,1736808637975,-500.0,9.895e-05,2]
[348850036,1736808637984,-970.08,9.895e-05,2]
[348850037,1736808637994,-500.0,9.895e-05,2]
[348850039,1736808638003,-769.52,9.895e-05,2]
[348850041,1736808638012,-500.0,9.895e-05,2]
[348850043,1736808638022,-1706.55,9.895e-05,2]
[348850045,1736808638031,-500.0,9.895e-05,2]
[348850046,1736808638040,-500.0,9.895e-05,2]
[348850047,1736808638049,-500.0,9.895e-05,2]
[348850048,1736808638058,-500.0,9.895e-05,2]
[348850049,1736808638067,-500.0,9.895e-05,2]
[348850050,1736808638076,-500.0,9.895e-05,2]
[348850051,1736808638085,-500.0,9.895e-05,2]
[348850052,1736808638094,-500.0,9.895e-05,2]
[348850053,1736808638103,-500.0,9.895e-05,2]
[348850054,1736808638112,-558.92,9.895e-05,2]
[348850055,1736808638121,-517.4,9.895e-05,2]
[348850056,1736808638130,-921.77,9.895e-05,2]
[348850057,1736808638139,-500.0,9.895e-05,2]
[348850058,1736808638150,-942.88,9.895e-05,2]
[348850059,1736808638163,-597.18,9.895e-05,2]
[348850060,1736808638172,-500.0,9.895e-05,2]
[348850061,1736808638182,-996.45,9.895e-05,2]
[348850062,1736808638192,-500.0,9.895e-05,2]
[348850063,1736808638202,-500.0,9.895e-05,2]
[348850064,1736808638212,-500.0,9.895e-05,2]
[348850065,1736808638222,-739.05,9.895e-05,2]
[348850066,1736808638233,-500.0,9.895e-05,2]
[348850067,1736808638243,-500.0,9.895e-05,2]
[348850068,1736808638252,-500.0,9.895e-05,2]
[348850069,1736808638261,-4262.13,9.895e-05,2]
[348850070,1736808638271,-930.61,9.895e-05,2]
[348850071,1736808638280,-500.0,9.895e-05,2]
[348850072,1736808638290,-500.0,9.895e-05,2]
[348850073,1736808638299,-500.0,9.895e-05,2]
[348850074,1736808638308,-523.7,9.895e-05,2]
[348850075,1736808638318,-999.16,9.895e-05,2]
[348850076,1736808638327,-500.0,9.895e-05,2]
[348850077,1736808638337,-500.0,9.895e-05,2]
[348850078,1736808638346,-500.0,9.895e-05,2]
[348850079,1736808638355,-500.0,9.895e-05,2]
[348850080,1736808638364,-500.0,9.895e-05,2]
[348850081,1736808638373,-500.0,9.895e-05,2]
[348850082,1736808638382,-534.78,9.895e-05,2]
[348850083,1736808638391,-536.76,9.895e-05,2]
[348850084,1736808638401,-500.0,9.895e-05,2]
[348850085,1736808638411,-500.0,9.895e-05,2]
[348850086,1736808638422,-500.0,9.895e-05,2]
[348850087,1736808638431,-500.0,9.895e-05,2]
[348850088,1736808638440,-414.18379964,9.895e-05,2]
[348850089,1736808638451,-500.0,9.895e-05,2]
[348850090,1736808638461,-500.0,9.895e-05,2]
[348850091,1736808638471,-886.47,9.895e-05,2]
[348850092,1736808638480,-500.0,9.895e-05,2]
[348850093,1736808638490,-500.0,9.895e-05,2]
[348850094,1736808638500,-500.0,9.895e-05,2]
[348850095,1736808638512,-500.0,9.895e-05,2]
[348850096,1736808638521,-500.0,9.895e-05,2]
[348850097,1736808638531,-500.0,9.895e-05,2]
[348850098,1736808638540,-500.0,9.895e-05,2]
[348850099,1736808638549,-500.0,9.895e-05,2]
[348850100,1736808638559,-500.0,9.895e-05,2]
[348850101,1736808638568,-500.0,9.895e-05,2]
[348850102,1736808638578,-500.0,9.895e-05,2]
[348850103,1736808638587,-500.0,9.895e-05,2]
[348850104,1736808638596,-596.17,9.895e-05,2]
[348850105,1736808638605,-500.0,9.895e-05,2]
[348850106,1736808638614,-500.0,9.895e-05,2]
[348850107,1736808638623,-1119.69,9.895e-05,2]
[348850108,1736808638632,-500.0,9.895e-05,2]
[348850109,1736808638641,-500.0,9.895e-05,2]
[348850110,1736808638651,-500.0,9.895e-05,2]
[348850111,1736808638660,-500.0,9.895e-05,2]
[348850112,1736808638670,-500.0,9.895e-05,2]
[348850113,1736808638679,-676.52,9.895e-05,2]
[348850114,1736808638688,-500.0,9.895e-05,2]
[348850115,1736808638697,-500.0,9.895e-05,2]
[348850116,1736808638706,-765.0,9.895e-05,2]
[348850117,1736808638715,-500.0,9.895e-05,2]
[348850118,1736808638724,-500.0,9.895e-05,2]
[348850119,1736808638734,-1321.68,9.895e-05,2]
[348850120,1736808638743,-500.0,9.895e-05,2]
[348850121,1736808638752,-687.13,9.895e-05,2]
[348850122,1736808638761,-1919.31,9.895e-05,2]
[348850123,1736808638770,-889.93,9.895e-05,2]
[348850124,1736808638779,-500.0,9.895e-05,2]
[348850125,1736808638788,-1066.99,9.895e-05,2]
[348850126,1736808638797,-821.91,9.895e-05,2]
[348850127,1736808638807,-500.0,9.895e-05,2]
[348850128,1736808638816,-500.0,9.895e-05,2]
[348850129,1736808638825,-500.0,9.895e-05,2]
[348850130,1736808638834,-500.0,9.895e-05,2]
[348850131,1736808638843,-500.0,9.895e-05,2]
[348850132,1736808638852,-500.0,9.895e-05,2]
[348850133,1736808638862,-500.0,9.895e-05,2]
[348850134,1736808638871,-500.0,9.895e-05,2]
[348850135,1736808638880,-1560.64,9.895e-05,2]
[348850136,1736808638889,-500.0,9.895e-05,2]
[348850137,1736808638898,-500.0,9.895e-05,2]
[348850138,1736808638907,-500.0,9.895e-05,2]
[348850139,1736808638917,-500.0,9.895e-05,2]
[348850140,1736808638926,-2202.6,9.895e-05,2]
[348850141,1736808638935,-500.0,9.895e-05,2]
[348850142,1736808638944,-500.0,9.895e-05,2]
[348850144,1736808638953,-1684.02,9.895e-05,2]
[348850146,1736808638963,-736.92,9.895e-05,2]
[348850149,1736808638975,-1565.38,9.895e-05,2]
[348850150,1736808638984,-500.0,9.895e-05,2]
[348850152,1736808638993,-500.0,9.895e-05,2]
[348850154,1736808639002,-500.0,9.895e-05,2]
[348850156,1736808639011,-500.0,9.895e-05,2]
[348850158,1736808639020,-2034.87,9.895e-05,2]
[348850160,1736808639029,-500.0,9.895e-05,2]
[348850162,1736808639038,-1675.44,9.895e-05,2]
[348850164,1736808639047,-500.0,9.895e-05,2]
[348850166,1736808639057,-500.0,9.895e-05,2]
[348850168,1736808639066,-3728.13,9.895e-05,2]
[348850170,1736808639075,-1776.12,9.895e-05,2]
[348850171,1736808639084,-1176.86,9.895e-05,2]
[348850172,1736808639093,-500.0,9.895e-05,2]
[348850173,1736808639102,-10229.6,9.895e-05,2]
[348850174,1736808639112,-587.89,9.895e-05,2]
[348850175,1736808639121,-500.0,9.895e-05,2]
[348850176,1736808639130,-500.0,9.895e-05,2]
[348850177,1736808639139,-1763.7,9.895e-05,2]
[348850178,1736808639149,-1444.01,9.895e-05,2]
[348850179,1736808639162,-528.15,9.895e-05,2]
[348850180,1736808639172,-500.0,9.896e-05,2]
[348850181,1736808639182,-2404.69,9.896e-05,2]
[348850182,1736808639192,-943.18,9.896e-05,2]
[348850183,1736808639201,-2189.29,9.896e-05,2]
[348850184,1736808639210,-500.0,9.896e-05,2]
[348850185,1736808639219,-691.22,9.896e-05,2]
[348850186,1736808639227,-1543.37,9.896e-05,2]
[348850187,1736808639237,-512.60489015,9.896e-05,2]
[348850188,1736808639246,-1000.0,9.896e-05,2]
[348850189,1736808639255,-1679.92,9.896e-05,2]
[348850190,1736808639264,-500.0,9.896e-05,2]
[348850191,1736808639273,-1994.93,9.898e-05,2]
[348850192,1736808639282,-4500.0,9.9e-05,3]
[348850193,1736808639290,-247.0,9.973e-05,2]
[348850194,1736808639299,-500.0,9.973e-05,2]
[348850195,1736808639309,-500.0,9.973e-05,2]
[348850196,1736808639317,-502.90185495,9.973e-05,2]
[348850197,1736808639327,-500.0,9.973e-05,2]
[348850198,1736808639336,-205.689,9.99e-05,2]
[348850199,1736808639345,-4125.414,9.991e-05,2]
[348850200,1736808639354,-6892.7383509,9.992e-05,2]
[348850201,1736808639363,-2377.9914849,9.992e-05,2]
[348850202,1736808639373,-6131.5133886,9.993e-05,2]
[348850203,1736808639382,-2115.3692314,9.993e-05,2]
[348850204,1736808639392,-1401.9599985,9.994e-05,2]
[348850205,1736808639401,-500.0,9.999e-05,2]
[348850207,1736808639410,-500.0,9.999e-05,2]
[348850208,1736808639419,-763.5,9.999e-05,2]
[348850209,1736808639427,-500.0,9.999e-05,2]
[348850210,1736808639436,-2758.73,9.999e-05,2]
[348850211,1736808639445,-1417.13,9.999e-05,2]
[348850212,1736808639454,-1288.9,9.999e-05,2]
[348850213,1736808639463,-745.88,9.999e-05,2]
[348850214,1736808639472,-500.0,9.999e-05,2]
[348850215,1736808639481,-1649.07,9.999e-05,2]
[348850216,1736808639490,-809.35,9.999e-05,2]
[348850218,1736808639499,-1083.0,9.999e-05,2]
[348850220,1736808639508,-2223.28,9.999e-05,2]
[348850221,1736808639517,-500.0,9.999e-05,2]
[348850222,1736808639526,-500.0,9.999e-05,2]
[348850223,1736808639535,-2745.59,9.999e-05,2]
[348850224,1736808639544,-500.0,9.999e-05,2]
[348850225,1736808639554,-2357.47,9.999e-05,2]
[348850226,1736808639563,-500.0,9.999e-05,2]
[348850227,1736808639572,-371.01739044,9.999e-05,2]
[348850228,1736808639581,-1262.0,0.0001,2]
[348850229,1736808639591,-70971.33898426,0.0001,2]
[348850230,1736808639926,-444.41359893,0.0001,2]
[348850231,1736808639938,-4574.1895,0.0001,2]
[348850232,1736808639956,-4975.04582778,0.0001,2]
[348850233,1736808639967,-4839.1849,0.0001,2]
[348850234,1736808639978,-486.87103,0.0001,2]
[348850235,1736808639989,-28945.8,0.0001,2]
[348850236,1736808640006,-11104.30000002,0.0001,2]
[348850237,1736808640028,-55694.86206083,0.0001,2]
[348850238,1736808640039,-112572.74288956,0.0001,2]
[348850239,1736808640115,-500.0,9.896e-05,2]
[348850240,1736808640125,-970.9993,0.0001,2]
[348850241,1736808640136,-1561.440015,0.0001,2]
[348850242,1736808641074,-476.4275,8.769e-05,2]
[348850243,1736808641084,-500.0,9.893e-05,2]
[348850244,1736808641094,-1739.41915235,0.0001,2]
[348850245,1736808641105,-1827.4623212,0.0001,2]
[348850246,1736808641116,-665.17985081,0.0001,2]
[348850247,1736808641127,-4327.83799204,0.0001,2]
[348850248,1736808641137,-2040.52448707,0.0001,2]
[348850249,1736808641149,-7259.42425626,0.0001,2]
[348850250,1736808641169,-3510971.47256763,0.0001,2]
[348850251,1736808641180,-274.176,0.0001,2]
[348850252,1736808641192,-1020.0,0.0001,2]
[348850253,1736808641204,-2238.99168339,0.0001,2]
[348850254,1736808641215,-2421.79938284,0.0001,2]
[348850255,1736808641226,-639.68026291,0.0001,2]
[348850256,1736808641242,-809.98594867,0.0001,2]
[348850257,1736808641253,-4975.51485734,0.0001,2]
[348850258,1736808641597,-350.79000003,0.0001,2]
[348850259,1736808641610,-36500.69057759,0.0001,2]
[348850260,1736808641623,-280001.26576638,0.0001,2]
[348850261,1736808641639,-489.4,0.0001,2]
[348850262,1736808641652,-27045.86,0.0001,2]
[348850263,1736808641671,-6998.34033099,0.0001,2]
[348850264,1736808641682,-36346.30925971,0.0001,2]
[348850274,1736808642586,-265.62288493,9.9e-05,2]
[348850275,1736808642596,-24359.99614244,0.0001,2]
[348850276,1736808642607,-336.09411717,0.0001,2]
[348850277,1736808642618,-1727.45310581,0.0001,2]
[348850278,1736808642629,-3028.33230841,0.0001,2]
[348850279,1736808642730,-3189.506688,0.0001,2]
[348850280,1736808642777,-1079.90058144,0.0001,2]
[348850281,1736808642788,-606.99099401,0.0001,2]
[348850282,1736808642799,-846.0768398,0.0001,2]
[348850286,1736808645756,-500.0,9.893e-05,2]
[348850287,1736808645769,-500.44,9.893e-05,2]
[348850288,1736808645783,-500.0,9.895e-05,2]
[348850289,1736808645795,-1609.76907612,0.0001,2]
[348850290,1736808645809,-529.24348807,0.0001,2]
[348850291,1736808645827,-1000.0,0.0001,2]
[348850292,1736808645842,-1039.449305,0.0001,2]
[348850293,1736808645856,-16227.32130979,0.0001,2]
[348850294,1736808645881,-933295.5949872,0.0001,2]
[348850296,1736808714792,1943.1184,8.591e-05,2]
[348850297,1736808793341,500.0,0.00022276,120]
[348850298,1736808793720,500.0,0.00022999,120]
[348850299,1736808803905,2000.0,0.00022658,120]
[348850300,1736808819336,500.0,0.00022734,120]
[348850301,1736808848850,200.0,0.00022067,120]
[348850302,1736808849208,200.0,0.00022999,120]
[348850303,1736808950100,924.38,8.564e-05,2]
[348850304,1736809019113,9100.89633,0.00023,120]
[348850305,1736809135495,22129.28777085,0.00019,120]
[348850312,1736809392206,500.0,0.00022666,120]
[348850313,1736809404460,2000.0,0.00022189,120]
[348850314,1736809404829,2000.0,0.00022944,120]
[348850315,1736809414975,500.0,0.00022816,120]
[348850316,1736809443812,200.0,0.0002228,120]
[348850317,1736809446062,871.44,8.219e-05,2]
[348850331,1736809831783,-163.05,8.706e-05,2]
[348850332,1736809831794,-175.84644,8.77e-05,2]
[348850333,1736809831805,-412.07356,8.77e-05,2]
[348850334,1736809831814,-300.0,8.819e-05,2]
[348850335,1736809831824,-4920.85868462,8.82e-05,2]
[348850336,1736809831835,-3116.2716893,8.82e-05,2]
[348850337,1736809831846,-2527.85989938,8.82e-05,2]
[348850338,1736809831857,-1795.50326023,8.82e-05,2]
[348850339,1736809831906,-11539.50646647,8.82e-05,2]
[348850340,1736809831919,-1000.0,8.845e-05,2]
[348850341,1736809831928,-250.0,8.943e-05,2]
[348850342,1736809831937,-250.0,8.982e-05,2]
[348850343,1736809831950,-1000.56802816,9e-05,2]
[348850344,1736809831965,-753.67,9.001e-05,2]
[348850345,1736809831979,-305.16,9.026e-05,2]
[348850346,1736809831992,-250.0,9.031e-05,2]
[348850347,1736809832003,-570.52,9.089e-05,2]
[348850348,1736809832014,-162.27,9.123e-05,2]
[348850349,1736809832027,-169.38,9.421e-05,2]
[348850350,1736809832039,-201.546,9.5e-05,2]
[348850351,1736809832052,-300.0,9.5e-05,3]
[348850352,1736809832065,-700.0,9.6e-05,3]
[348850353,1736809832078,-150.0,9.693e-05,2]
[348850354,1736809832090,-265.6203,9.694e-05,2]
[348850355,1736809832101,-27228.9981,9.694e-05,2]
[348850356,1736809832113,-533.0243,9.694e-05,2]
[348850357,1736809832123,-1100.0,9.7e-05,3]
[348850358,1736809832137,-420.0,9.701e-05,2]
[348850359,1736809832152,-2538.9991,9.793e-05,2]
[348850360,1736809832165,-75739.0893,9.794e-05,2]
[348850361,1736809832179,-1500.0,9.8e-05,3]
[348850363,1736809832191,-500.0,9.891e-05,2]
[348850366,1736809832205,-2427.41,9.891e-05,2]
[348850368,1736809832218,-3357.08,9.891e-05,2]
[348850370,1736809832231,-1916.18,9.891e-05,2]
[348850373,1736809832243,-500.0,9.891e-05,2]
[348850375,1736809832258,-1228.17,9.891e-05,2]
[348850376,1736809832271,-2932.61,9.891e-05,2]
[348850377,1736809832284,-500.0,9.891e-05,2]
[348850378,1736809832296,-500.0,9.891e-05,2]
[348850379,1736809832308,-872.8,9.891e-05,2]
[348850380,1736809832319,-500.0,9.891e-05,2]
[348850381,1736809832332,-500.0,9.891e-05,2]
[348850382,1736809832344,-500.0,9.891e-05,2]
[348850383,1736809832356,-939.82,9.891e-05,2]
[348850384,1736809832368,-1706.23,9.891e-05,2]
[348850385,1736809832380,-500.0,9.891e-05,2]
[348850386,1736809832391,-500.0,9.891e-05,2]
[348850387,1736809832402,-1043.34,9.892e-05,2]
[348850388,1736809832413,-500.0,9.892e-05,2]
[348850389,1736809832428,-500.0,9.892e-05,2]
[348850390,1736809832443,-500.0,9.892e-05,2]
[348850391,1736809832454,-500.0,9.892e-05,2]
[348850392,1736809832464,-994.51,9.892e-05,2]
[348850393,1736809832476,-500.0,9.892e-05,2]
[348850394,1736809832486,-500.0,9.892e-05,2]
[348850395,1736809832498,-500.0,9.892e-05,2]
[348850396,1736809832511,-500.0,9.892e-05,2]
[348850397,1736809832525,-500.0,9.892e-05,2]
[348850398,1736809832536,-500.0,9.892e-05,2]
[348850399,1736809832546,-500.0,9.892e-05,2]
[348850400,1736809832557,-500.0,9.892e-05,2]
[348850401,1736809832567,-500.0,9.892e-05,2]
[348850402,1736809832578,-500.0,9.892e-05,2]
[348850403,1736809832592,-500.0,9.892e-05,2]
[348850404,1736809832603,-500.0,9.892e-05,2]
[348850405,1736809832614,-500.0,9.892e-05,2]
[348850406,1736809832625,-500.0,9.892e-05,2]
[348850407,1736809832635,-500.0,9.892e-05,2]
[348850408,1736809832647,-500.0,9.892e-05,2]
[348850409,1736809832659,-500.0,9.892e-05,2]
[348850410,1736809832672,-500.0,9.892e-05,2]
[348850411,1736809832683,-500.0,9.892e-05,2]
[348850412,1736809832694,-500.0,9.892e-05,2]
[348850413,1736809832706,-500.0,9.892e-05,2]
[348850414,1736809832716,-500.0,9.892e-05,2]
[348850415,1736809832727,-500.0,9.892e-05,2]
[348850416,1736809832738,-500.0,9.892e-05,2]
[348850417,1736809832749,-500.0,9.892e-05,2]